[Event "Titled Tuesday Blitz August 17 2021"]
[White "Krysa, Leandro"]
[Black "Sokolin, Leonid"]
[WhiteFideId "116807"]
[BlackFideId "2009161"]
[WhiteElo "2490"]
[BlackElo "2394"]
[Result "1/2-1/2"]
[Round "10"]
[TimeControl "180+1"]
[Date "2021.08.17"]
[WhiteClock "0:00:06"]
[BlackClock "0:00:11"]

1. e4 {[%clk 0:02:49]}  c5 {[%clk 0:02:47]} 2. Nf3 {[%clk 0:02:48]}  Nc6 {[%clk 0:02:46]} 3. d4 {[%clk 0:02:49]}  cxd4 {[%clk 0:02:47]} 4. Nxd4 {[%clk 0:02:49]}  e5 {[%clk 0:02:47]} 5. Nf5 {[%clk 0:02:50]}  d5 {[%clk 0:02:47]} 6. Qxd5 {[%clk 0:02:49]}  Qxd5 {[%clk 0:02:46]} 7. exd5 {[%clk 0:02:50]}  Bxf5 {[%clk 0:02:44]} 8. dxc6 {[%clk 0:02:50]}  bxc6 {[%clk 0:02:44]} 9. Bd3 {[%clk 0:02:51]}  Bxd3 {[%clk 0:02:43]} 10. cxd3 {[%clk 0:02:52]}  O-O-O {[%clk 0:02:43]} 11. Ke2 {[%clk 0:02:52]}  Ne7 {[%clk 0:02:43]} 12. Be3 {[%clk 0:02:53]}  Kb7 {[%clk 0:02:42]} 13. Rc1 {[%clk 0:02:53]}  Nf5 {[%clk 0:02:39]} 14. Nd2 {[%clk 0:02:53]}  Nd4+ {[%clk 0:02:34]} 15. Bxd4 {[%clk 0:02:49]}  Rxd4 {[%clk 0:02:34]} 16. Nb3 {[%clk 0:02:44]}  Rd5 {[%clk 0:02:30]} 17. Rc4 {[%clk 0:02:44]}  Bd6 {[%clk 0:02:25]} 18. Rac1 {[%clk 0:02:44]}  Rc8 {[%clk 0:02:24]} 19. Ra4 {[%clk 0:02:44]}  Kb6 {[%clk 0:01:56]} 20. h4 {[%clk 0:02:39]}  Rb5 {[%clk 0:01:51]} 21. g3 {[%clk 0:02:31]}  f5 {[%clk 0:01:49]} 22. Kf3 {[%clk 0:02:24]}  Rd5 {[%clk 0:01:43]} 23. Ke2 {[%clk 0:02:20]}  Rb5 {[%clk 0:01:41]} 24. Rc2 {[%clk 0:02:20]}  a5 {[%clk 0:01:32]} 25. Nd2 {[%clk 0:02:20]}  Ka6 {[%clk 0:01:29]} 26. Rac4 {[%clk 0:02:15]}  Kb6 {[%clk 0:01:26]} 27. R4c3 {[%clk 0:02:14]}  Bb4 {[%clk 0:01:23]} 28. Nc4+ {[%clk 0:01:40]}  Ka6 {[%clk 0:01:21]} 29. a4 {[%clk 0:01:39]}  Rc5 {[%clk 0:01:06]} 30. Rb3 {[%clk 0:01:38]}  g6 {[%clk 0:01:01]} 31. Ne3 {[%clk 0:01:37]}  Rxc2+ {[%clk 0:00:58]} 32. Nxc2 {[%clk 0:01:38]}  c5 {[%clk 0:00:58]} 33. Kd1 {[%clk 0:01:20]}  Rd8 {[%clk 0:00:58]} 34. Ke2 {[%clk 0:01:15]}  Kb6 {[%clk 0:00:56]} 35. Ne3 {[%clk 0:01:14]}  Kc6 {[%clk 0:00:56]} 36. Nc4 {[%clk 0:01:14]}  Kd5 {[%clk 0:00:55]} 37. Nb6+ {[%clk 0:01:10]}  Kd4 {[%clk 0:00:52]} 38. Nc4 {[%clk 0:01:11]}  h6 {[%clk 0:00:47]} 39. Ne3 {[%clk 0:01:05]}  f4 {[%clk 0:00:45]} 40. gxf4 {[%clk 0:00:57]}  exf4 {[%clk 0:00:44]} 41. Nc2+ {[%clk 0:00:58]}  Kd5 {[%clk 0:00:42]} 42. d4 {[%clk 0:00:54]}  Kc4 {[%clk 0:00:33]} 43. Rf3 {[%clk 0:00:43]}  g5 {[%clk 0:00:31]} 44. hxg5 {[%clk 0:00:41]}  hxg5 {[%clk 0:00:31]} 45. b3+ {[%clk 0:00:40]}  Kd5 {[%clk 0:00:31]} 46. dxc5 {[%clk 0:00:39]}  Ke4 {[%clk 0:00:26]} 47. Nxb4 {[%clk 0:00:24]}  axb4 {[%clk 0:00:25]} 48. Rh3 {[%clk 0:00:20]}  Rc8 {[%clk 0:00:20]} 49. Rh7 {[%clk 0:00:18]}  Rxc5 {[%clk 0:00:19]} 50. Re7+ {[%clk 0:00:17]}  Kd4 {[%clk 0:00:19]} 51. Kd2 {[%clk 0:00:17]}  Rc3 {[%clk 0:00:17]} 52. Rd7+ {[%clk 0:00:14]}  Ke4 {[%clk 0:00:17]} 53. Rg7 {[%clk 0:00:06]}  Kf3 {[%clk 0:00:16]} 54. Rxg5 {[%clk 0:00:05]}  Rxb3 {[%clk 0:00:16]} 55. Rb5 {[%clk 0:00:05]}  Rb2+ {[%clk 0:00:15]} 56. Kc1 {[%clk 0:00:04]}  Rxf2 {[%clk 0:00:14]} 57. Rxb4 {[%clk 0:00:04]}  Kg2 {[%clk 0:00:13]} 58. Kb1 {[%clk 0:00:02]}  f3 {[%clk 0:00:13]} 59. a5 {[%clk 0:00:02]}  Rd2 {[%clk 0:00:12]} 60. Rb8 {[%clk 0:00:02]}  Rd5 {[%clk 0:00:12]} 61. Rg8+ {[%clk 0:00:02]}  Kf1 {[%clk 0:00:11]} 62. a6 {[%clk 0:00:02]}  Ra5 {[%clk 0:00:11]} 63. Rg6 {[%clk 0:00:02]}  f2 {[%clk 0:00:11]} 64. Kb2 {[%clk 0:00:03]}  Ke1 {[%clk 0:00:10]} 65. Re6+ {[%clk 0:00:03]}  Kd2 {[%clk 0:00:11]} 66. Rd6+ {[%clk 0:00:03]}  Ke3 {[%clk 0:00:11]} 67. Re6+ {[%clk 0:00:04]}  Kf4 {[%clk 0:00:10]} 68. Rf6+ {[%clk 0:00:04]}  Rf5 {[%clk 0:00:10]} 69. Rxf5+ {[%clk 0:00:04]}  Kxf5 {[%clk 0:00:10]} 70. a7 {[%clk 0:00:05]}  f1=Q {[%clk 0:00:11]} 71. a8=Q {[%clk 0:00:05]}  Qb5+ {[%clk 0:00:10]} 72. Kc3 {[%clk 0:00:05]}  Qc5+ {[%clk 0:00:10]} 73. Kb3 {[%clk 0:00:05]}  Qe3+ {[%clk 0:00:09]} 74. Kb2 {[%clk 0:00:04]}  Qe2+ {[%clk 0:00:10]} 75. Kb3 {[%clk 0:00:05]}  Qe3+ {[%clk 0:00:10]} 76. Kb2 {[%clk 0:00:05]}  Qe2+ {[%clk 0:00:11]} 77. Kb3 {[%clk 0:00:06]}  Qe3+ {[%clk 0:00:11]} 1/2-1/2


[Site "https://www.chess.com"]

[Event "Titled Tuesday Blitz August 17 2021"]
[White "Kuzubov, Yuriy"]
[Black "Garriga Cazorla, Pere"]
[WhiteFideId "14112906"]
[BlackFideId "32011601"]
[WhiteElo "2564"]
[BlackElo "2430"]
[Result "0-1"]
[Round "10"]
[TimeControl "180+1"]
[Date "2021.08.17"]
[WhiteClock "0:00:02"]
[BlackClock "0:00:09"]

1. d4 {[%clk 0:03:00]}  Nf6 {[%clk 0:02:57]} 2. Nf3 {[%clk 0:03:00]}  e6 {[%clk 0:02:57]} 3. c4 {[%clk 0:03:00]}  d5 {[%clk 0:02:57]} 4. g3 {[%clk 0:03:00]}  Bb4+ {[%clk 0:02:56]} 5. Bd2 {[%clk 0:03:00]}  Bd6 {[%clk 0:02:56]} 6. Nc3 {[%clk 0:02:58]}  O-O {[%clk 0:02:54]} 7. Bg5 {[%clk 0:02:56]}  c6 {[%clk 0:02:44]} 8. Bg2 {[%clk 0:02:53]}  Nbd7 {[%clk 0:02:33]} 9. e4 {[%clk 0:02:53]}  dxe4 {[%clk 0:02:27]} 10. Nxe4 {[%clk 0:02:53]}  Bb4+ {[%clk 0:02:27]} 11. Nc3 {[%clk 0:02:52]}  h6 {[%clk 0:02:26]} 12. Bf4 {[%clk 0:02:45]}  c5 {[%clk 0:01:57]} 13. O-O {[%clk 0:02:23]}  cxd4 {[%clk 0:01:55]} 14. Qxd4 {[%clk 0:02:24]}  Qb6 {[%clk 0:01:51]} 15. Nb5 {[%clk 0:02:06]}  Bc5 {[%clk 0:01:42]} 16. Qd2 {[%clk 0:01:53]}  Ne4 {[%clk 0:01:22]} 17. Qe2 {[%clk 0:01:47]}  Nd6 {[%clk 0:01:11]} 18. b4 {[%clk 0:01:40]}  Bxb4 {[%clk 0:01:05]} 19. Rab1 {[%clk 0:01:40]}  Nxb5 {[%clk 0:00:52]} 20. Rxb4 {[%clk 0:01:30]}  Nd4 {[%clk 0:00:47]} 21. Qb2 {[%clk 0:01:25]}  Nxf3+ {[%clk 0:00:43]} 22. Bxf3 {[%clk 0:01:26]}  Qc5 {[%clk 0:00:43]} 23. Rd1 {[%clk 0:01:22]}  Qf5 {[%clk 0:00:38]} 24. Rb5 {[%clk 0:01:12]}  e5 {[%clk 0:00:22]} 25. Re1 {[%clk 0:00:57]}  Qf6 {[%clk 0:00:21]} 26. Rbxe5 {[%clk 0:00:49]}  Nxe5 {[%clk 0:00:20]} 27. Rxe5 {[%clk 0:00:49]}  Bf5 {[%clk 0:00:20]} 28. h4 {[%clk 0:00:42]}  Rad8 {[%clk 0:00:20]} 29. Qxb7 {[%clk 0:00:41]}  Be6 {[%clk 0:00:19]} 30. c5 {[%clk 0:00:37]}  Rd4 {[%clk 0:00:19]} 31. c6 {[%clk 0:00:19]}  Rxf4 {[%clk 0:00:19]} 32. gxf4 {[%clk 0:00:20]}  Qxf4 {[%clk 0:00:19]} 33. Re3 {[%clk 0:00:19]}  Qxh4 {[%clk 0:00:19]} 34. c7 {[%clk 0:00:18]}  Qg5+ {[%clk 0:00:18]} 35. Bg2 {[%clk 0:00:17]}  Rc8 {[%clk 0:00:14]} 36. Qc6 {[%clk 0:00:14]}  Kh7 {[%clk 0:00:11]} 37. Qb7 {[%clk 0:00:12]}  Qf4 {[%clk 0:00:11]} 38. Rxe6 {[%clk 0:00:11]}  Rxc7 {[%clk 0:00:11]} 39. Qb1+ {[%clk 0:00:11]}  g6 {[%clk 0:00:11]} 40. Re1 {[%clk 0:00:11]}  h5 {[%clk 0:00:11]} 41. Qd3 {[%clk 0:00:11]}  Rc5 {[%clk 0:00:10]} 42. Qf3 {[%clk 0:00:10]}  Qxf3 {[%clk 0:00:09]} 43. Bxf3 {[%clk 0:00:11]}  Rg5+ {[%clk 0:00:10]} 44. Kf1 {[%clk 0:00:11]}  Ra5 {[%clk 0:00:11]} 45. Re2 {[%clk 0:00:10]}  f5 {[%clk 0:00:11]} 46. Bc6 {[%clk 0:00:09]}  Kh6 {[%clk 0:00:11]} 47. Rc2 {[%clk 0:00:08]}  Ra6 {[%clk 0:00:11]} 48. Bd5 {[%clk 0:00:07]}  Rd6 {[%clk 0:00:11]} 49. Bb3 {[%clk 0:00:08]}  Kg5 {[%clk 0:00:12]} 50. Kg2 {[%clk 0:00:08]}  Kh4 {[%clk 0:00:11]} 51. Rc4+ {[%clk 0:00:08]}  Kg5 {[%clk 0:00:12]} 52. Rc7 {[%clk 0:00:07]}  f4 {[%clk 0:00:12]} 53. Rxa7 {[%clk 0:00:07]}  Kh4 {[%clk 0:00:12]} 54. Ra4 {[%clk 0:00:06]}  g5 {[%clk 0:00:12]} 55. Re4 {[%clk 0:00:06]}  Rf6 {[%clk 0:00:12]} 56. f3 {[%clk 0:00:04]}  g4 {[%clk 0:00:12]} 57. Re5 {[%clk 0:00:04]}  Rd6 {[%clk 0:00:11]} 58. Re2 {[%clk 0:00:04]}  Rd3 {[%clk 0:00:12]} 59. Rf2 {[%clk 0:00:04]}  Re3 {[%clk 0:00:11]} 60. fxg4 {[%clk 0:00:04]}  Kxg4 {[%clk 0:00:10]} 61. Bd1+ {[%clk 0:00:04]}  Kg5 {[%clk 0:00:10]} 62. Bf3 {[%clk 0:00:04]}  Ra3 {[%clk 0:00:11]} 63. Rb2 {[%clk 0:00:04]}  Ra5 {[%clk 0:00:11]} 64. Bd1 {[%clk 0:00:03]}  Kh4 {[%clk 0:00:12]} 65. a4 {[%clk 0:00:03]}  Rg5+ {[%clk 0:00:10]} 66. Kh2 {[%clk 0:00:03]}  Rd5 {[%clk 0:00:09]} 67. Bf3 {[%clk 0:00:03]}  Rd3 {[%clk 0:00:09]} 68. Kg2 {[%clk 0:00:02]}  Ra3 {[%clk 0:00:09]} 0-1


[Site "https://www.chess.com"]

[Event "Titled Tuesday Blitz August 17 2021"]
[White "Lagunow, Raphael"]
[Black "Ladan, Nicholas"]
[WhiteFideId "24652644"]
[BlackFideId "30918855"]
[WhiteElo "2400"]
[BlackElo "2361"]
[Result "1-0"]
[Round "10"]
[TimeControl "180+1"]
[Date "2021.08.18"]
[WhiteClock "0:00:16"]
[BlackClock "0:00:54"]

1. e4 {[%clk 0:03:00]}  e5 {[%clk 0:02:59]} 2. Nf3 {[%clk 0:02:57]}  Nc6 {[%clk 0:03:00]} 3. Bc4 {[%clk 0:02:56]}  Nf6 {[%clk 0:02:59]} 4. Ng5 {[%clk 0:02:56]}  d5 {[%clk 0:02:59]} 5. exd5 {[%clk 0:02:55]}  Na5 {[%clk 0:03:00]} 6. Bb5+ {[%clk 0:02:56]}  c6 {[%clk 0:03:01]} 7. dxc6 {[%clk 0:02:56]}  bxc6 {[%clk 0:03:01]} 8. Bd3 {[%clk 0:02:57]}  Nd5 {[%clk 0:02:58]} 9. Nf3 {[%clk 0:02:56]}  Bd6 {[%clk 0:02:57]} 10. O-O {[%clk 0:02:56]}  O-O {[%clk 0:02:57]} 11. Re1 {[%clk 0:02:56]}  Qc7 {[%clk 0:02:56]} 12. c4 {[%clk 0:01:24]}  Nf4 {[%clk 0:02:54]} 13. Bf1 {[%clk 0:01:23]}  Bg4 {[%clk 0:02:53]} 14. h3 {[%clk 0:01:19]}  Bh5 {[%clk 0:02:52]} 15. d4 {[%clk 0:01:18]}  Rad8 {[%clk 0:02:34]} 16. Bxf4 {[%clk 0:01:15]}  exf4 {[%clk 0:02:32]} 17. Nbd2 {[%clk 0:01:16]}  Bb4 {[%clk 0:02:21]} 18. Be2 {[%clk 0:01:06]}  Bxf3 {[%clk 0:02:18]} 19. Nxf3 {[%clk 0:01:03]}  Bxe1 {[%clk 0:02:16]} 20. Qxe1 {[%clk 0:01:04]}  Rfe8 {[%clk 0:02:14]} 21. Qf1 {[%clk 0:00:59]}  Nb7 {[%clk 0:02:06]} 22. b4 {[%clk 0:00:59]}  Nd6 {[%clk 0:02:05]} 23. Rd1 {[%clk 0:00:51]}  a5 {[%clk 0:01:58]} 24. a3 {[%clk 0:00:50]}  Ne4 {[%clk 0:01:53]} 25. Bd3 {[%clk 0:00:47]}  axb4 {[%clk 0:01:37]} 26. axb4 {[%clk 0:00:47]}  Qb8 {[%clk 0:01:38]} 27. Rb1 {[%clk 0:00:27]}  Re7 {[%clk 0:01:30]} 28. c5 {[%clk 0:00:24]}  Nc3 {[%clk 0:01:28]} 29. Rb3 {[%clk 0:00:23]}  Nb5 {[%clk 0:01:23]} 30. Bxb5 {[%clk 0:00:22]}  Qxb5 {[%clk 0:01:22]} 31. Qxb5 {[%clk 0:00:21]}  cxb5 {[%clk 0:01:23]} 32. Ra3 {[%clk 0:00:22]}  f6 {[%clk 0:01:16]} 33. Ra5 {[%clk 0:00:21]}  Rb7 {[%clk 0:01:14]} 34. Kf1 {[%clk 0:00:20]}  Kf7 {[%clk 0:01:14]} 35. Ke2 {[%clk 0:00:20]}  Ke6 {[%clk 0:01:14]} 36. Kd3 {[%clk 0:00:21]}  Kd5 {[%clk 0:01:14]} 37. Nd2 {[%clk 0:00:18]}  f5 {[%clk 0:01:08]} 38. Nb1 {[%clk 0:00:18]}  Re8 {[%clk 0:00:58]} 39. Nc3+ {[%clk 0:00:19]}  Kc6 {[%clk 0:00:57]} 40. d5+ {[%clk 0:00:19]}  Kc7 {[%clk 0:00:57]} 41. Rxb5 {[%clk 0:00:19]}  Reb8 {[%clk 0:00:51]} 42. Rxb7+ {[%clk 0:00:19]}  Rxb7 {[%clk 0:00:52]} 43. b5 {[%clk 0:00:19]}  Ra7 {[%clk 0:00:52]} 44. Kd4 {[%clk 0:00:19]}  Ra3 {[%clk 0:00:51]} 45. b6+ {[%clk 0:00:18]}  Kb7 {[%clk 0:00:51]} 46. Nb5 {[%clk 0:00:17]}  Ra4+ {[%clk 0:00:51]} 47. Ke5 {[%clk 0:00:17]}  Rc4 {[%clk 0:00:52]} 48. Nd6+ {[%clk 0:00:16]}  Ka6 {[%clk 0:00:51]} 49. Nxc4 {[%clk 0:00:17]}  f3 {[%clk 0:00:52]} 50. gxf3 {[%clk 0:00:16]}  f4 {[%clk 0:00:53]} 51. d6 {[%clk 0:00:16]}  g5 {[%clk 0:00:54]} 52. d7 {[%clk 0:00:16]}  h5 {[%clk 0:00:55]} 53. d8=Q {[%clk 0:00:16]}  g4 {[%clk 0:00:55]} 54. Qa8+ {[%clk 0:00:15]}  Kb5 {[%clk 0:00:55]} 55. Nd6+ {[%clk 0:00:15]}  Kxc5 {[%clk 0:00:55]} 56. b7 {[%clk 0:00:15]}  g3 {[%clk 0:00:55]} 57. Qa5+ {[%clk 0:00:15]}  Kc6 {[%clk 0:00:54]} 58. Qb5+ {[%clk 0:00:15]}  Kc7 {[%clk 0:00:54]} 59. b8=Q# {[%clk 0:00:16]} 1-0


[Site "https://www.chess.com"]

[Event "Titled Tuesday Blitz August 17 2021"]
[White "Laurusas, Tomas"]
[Black "Kononenko, Dmitry"]
[WhiteFideId "12803731"]
[BlackFideId "14113538"]
[WhiteElo "2542"]
[BlackElo "2276"]
[Result "1-0"]
[Round "10"]
[TimeControl "180+1"]
[Date "2021.08.17"]
[WhiteClock "0:01:20"]
[BlackClock "0:00:11"]

1. Nf3 {[%clk 0:02:55]}  c5 {[%clk 0:02:59]} 2. d3 {[%clk 0:02:56]}  Nc6 {[%clk 0:02:59]} 3. Nbd2 {[%clk 0:02:56]}  g6 {[%clk 0:02:56]} 4. e4 {[%clk 0:02:57]}  Bg7 {[%clk 0:02:56]} 5. Be2 {[%clk 0:02:58]}  Nf6 {[%clk 0:02:55]} 6. O-O {[%clk 0:02:59]}  d5 {[%clk 0:02:55]} 7. Re1 {[%clk 0:02:59]}  O-O {[%clk 0:02:55]} 8. c3 {[%clk 0:02:58]}  e5 {[%clk 0:02:46]} 9. exd5 {[%clk 0:02:43]}  Nxd5 {[%clk 0:02:45]} 10. a4 {[%clk 0:02:43]}  Re8 {[%clk 0:02:43]} 11. Nc4 {[%clk 0:02:30]}  h6 {[%clk 0:02:35]} 12. Bf1 {[%clk 0:02:29]}  Qc7 {[%clk 0:02:33]} 13. a5 {[%clk 0:02:29]}  Be6 {[%clk 0:02:27]} 14. Qa4 {[%clk 0:02:27]}  Rad8 {[%clk 0:02:24]} 15. Bd2 {[%clk 0:02:25]}  Kh7 {[%clk 0:02:21]} 16. Rad1 {[%clk 0:02:25]}  f5 {[%clk 0:02:21]} 17. Bc1 {[%clk 0:02:23]}  Bf7 {[%clk 0:02:11]} 18. Qb5 {[%clk 0:02:08]}  e4 {[%clk 0:01:51]} 19. dxe4 {[%clk 0:02:07]}  fxe4 {[%clk 0:01:51]} 20. Nfd2 {[%clk 0:02:07]}  e3 {[%clk 0:01:40]} 21. fxe3 {[%clk 0:02:02]}  Ne5 {[%clk 0:01:27]} 22. e4 {[%clk 0:01:55]}  Ng4 {[%clk 0:01:21]} 23. Nf3 {[%clk 0:01:53]}  Nf4 {[%clk 0:01:14]} 24. Rxd8 {[%clk 0:01:51]}  Rxd8 {[%clk 0:01:13]} 25. Bxf4 {[%clk 0:01:50]}  Qxf4 {[%clk 0:01:12]} 26. Qxb7 {[%clk 0:01:51]}  Bxc4 {[%clk 0:00:49]} 27. Bxc4 {[%clk 0:01:52]}  Rd2 {[%clk 0:00:49]} 28. Qf7 {[%clk 0:01:43]}  Qxf7 {[%clk 0:00:47]} 29. Bxf7 {[%clk 0:01:44]}  Rxb2 {[%clk 0:00:47]} 30. e5 {[%clk 0:01:44]}  Rb7 {[%clk 0:00:35]} 31. e6 {[%clk 0:01:40]}  Bf6 {[%clk 0:00:33]} 32. h3 {[%clk 0:01:40]}  Bxc3 {[%clk 0:00:23]} 33. Rc1 {[%clk 0:01:37]}  Bb2 {[%clk 0:00:20]} 34. a6 {[%clk 0:01:35]}  Rb8 {[%clk 0:00:17]} 35. Rxc5 {[%clk 0:01:34]}  Nf6 {[%clk 0:00:17]} 36. Rc7 {[%clk 0:01:33]}  Kh8 {[%clk 0:00:17]} 37. Rb7 {[%clk 0:01:31]}  Rc8 {[%clk 0:00:16]} 38. Rxb2 {[%clk 0:01:31]}  Kg7 {[%clk 0:00:14]} 39. Rb7 {[%clk 0:01:30]}  Ne4 {[%clk 0:00:15]} 40. Rxa7 {[%clk 0:01:29]}  Kf6 {[%clk 0:00:14]} 41. Rb7 {[%clk 0:01:24]}  h5 {[%clk 0:00:14]} 42. a7 {[%clk 0:01:24]}  Rc1+ {[%clk 0:00:15]} 43. Kh2 {[%clk 0:01:21]}  Ra1 {[%clk 0:00:15]} 44. h4 {[%clk 0:01:20]}  Nf2 {[%clk 0:00:15]} 45. Kg3 {[%clk 0:01:20]}  Ne4+ {[%clk 0:00:14]} 46. Kf4 {[%clk 0:01:20]}  Ra4 {[%clk 0:00:14]} 47. a8=Q {[%clk 0:01:20]}  Rxa8 {[%clk 0:00:11]} 48. Kxe4 {[%clk 0:01:20]}  Ra4+ {[%clk 0:00:12]} 49. Nd4 {[%clk 0:01:20]}  g5 {[%clk 0:00:11]} 50. hxg5+ {[%clk 0:01:19]}  Kxg5 {[%clk 0:00:11]} 51. e7 {[%clk 0:01:20]}  Rxd4+ {[%clk 0:00:11]} 52. Kxd4 {[%clk 0:01:20]} 1-0


[Site "https://www.chess.com"]

[Event "Titled Tuesday Blitz August 17 2021"]
[White "Loy, Konstantin"]
[Black "Sarkar, Justin"]
[WhiteFideId "14122499"]
[BlackFideId "2010011"]
[WhiteElo "2084"]
[BlackElo "2094"]
[Result "0-1"]
[Round "10"]
[TimeControl "180+1"]
[Date "2021.08.18"]
[WhiteClock "0:00:02"]
[BlackClock "0:00:01"]

1. e4 {[%clk 0:02:52]}  e5 {[%clk 0:02:57]} 2. Nf3 {[%clk 0:02:52]}  Nc6 {[%clk 0:02:56]} 3. d4 {[%clk 0:02:52]}  exd4 {[%clk 0:02:55]} 4. Nxd4 {[%clk 0:02:52]}  Nf6 {[%clk 0:02:41]} 5. Nxc6 {[%clk 0:02:52]}  bxc6 {[%clk 0:02:40]} 6. Bd3 {[%clk 0:02:52]}  d6 {[%clk 0:02:25]} 7. O-O {[%clk 0:02:52]}  Be7 {[%clk 0:02:25]} 8. Nc3 {[%clk 0:02:52]}  O-O {[%clk 0:02:24]} 9. f4 {[%clk 0:02:52]}  Nd7 {[%clk 0:02:03]} 10. Be3 {[%clk 0:02:37]}  Bf6 {[%clk 0:02:01]} 11. Qf3 {[%clk 0:02:20]}  Rb8 {[%clk 0:01:52]} 12. Rab1 {[%clk 0:02:20]}  g6 {[%clk 0:01:06]} 13. Bxa7 {[%clk 0:02:16]}  Ra8 {[%clk 0:01:03]} 14. Be3 {[%clk 0:02:14]}  Bxc3 {[%clk 0:00:58]} 15. bxc3 {[%clk 0:02:14]}  Rxa2 {[%clk 0:00:57]} 16. Rf2 {[%clk 0:01:45]}  Ba6 {[%clk 0:00:50]} 17. Qe2 {[%clk 0:01:17]}  Bxd3 {[%clk 0:00:47]} 18. Qxd3 {[%clk 0:01:18]}  Qe7 {[%clk 0:00:31]} 19. Qc4 {[%clk 0:01:05]}  Rfa8 {[%clk 0:00:30]} 20. Qxc6 {[%clk 0:01:02]}  Nf6 {[%clk 0:00:28]} 21. h3 {[%clk 0:00:11]}  Nxe4 {[%clk 0:00:23]} 22. Re2 {[%clk 0:00:09]}  Ng3 {[%clk 0:00:19]} 23. Ree1 {[%clk 0:00:09]}  Qh4 {[%clk 0:00:10]} 24. Bf2 {[%clk 0:00:08]}  Rf8 {[%clk 0:00:03]} 25. Re3 {[%clk 0:00:07]}  Qxf4 {[%clk 0:00:03]} 26. Rxg3 {[%clk 0:00:06]}  Rxc2 {[%clk 0:00:02]} 27. Rf3 {[%clk 0:00:05]}  Qd2 {[%clk 0:00:02]} 28. Rf1 {[%clk 0:00:05]}  f5 {[%clk 0:00:02]} 29. Qxc7 {[%clk 0:00:04]}  Rf7 {[%clk 0:00:02]} 30. Qc4 {[%clk 0:00:04]}  Kg7 {[%clk 0:00:02]} 31. Qd4+ {[%clk 0:00:05]}  Qxd4 {[%clk 0:00:01]} 32. Bxd4+ {[%clk 0:00:06]}  Kg8 {[%clk 0:00:01]} 33. R3f2 {[%clk 0:00:06]}  Rxf2 {[%clk 0:00:01]} 34. Rxf2 {[%clk 0:00:07]}  Rb7 {[%clk 0:00:01]} 35. Re2 {[%clk 0:00:07]}  Kf7 {[%clk 0:00:01]} 36. Kf2 {[%clk 0:00:07]}  Rb3 {[%clk 0:00:02]} 37. Ke3 {[%clk 0:00:07]}  g5 {[%clk 0:00:02]} 38. Kd3 {[%clk 0:00:07]}  f4 {[%clk 0:00:02]} 39. Kc4 {[%clk 0:00:07]}  Ra3 {[%clk 0:00:02]} 40. Kd5 {[%clk 0:00:07]}  Ra6 {[%clk 0:00:02]} 41. Rb2 {[%clk 0:00:06]}  h5 {[%clk 0:00:02]} 42. Rb6 {[%clk 0:00:06]}  Ra5+ {[%clk 0:00:01]} 43. Kxd6 {[%clk 0:00:05]}  g4 {[%clk 0:00:02]} 44. hxg4 {[%clk 0:00:05]}  hxg4 {[%clk 0:00:02]} 45. Rb7+ {[%clk 0:00:05]}  Kg6 {[%clk 0:00:02]} 46. Rg7+ {[%clk 0:00:06]}  Kf5 {[%clk 0:00:02]} 47. c4 {[%clk 0:00:04]}  f3 {[%clk 0:00:02]} 48. gxf3 {[%clk 0:00:04]}  gxf3 {[%clk 0:00:02]} 49. Rf7+ {[%clk 0:00:05]}  Ke4 {[%clk 0:00:03]} 50. Bb6 {[%clk 0:00:04]}  Ra6 {[%clk 0:00:02]} 51. Kc6 {[%clk 0:00:02]}  Ra3 {[%clk 0:00:01]} 0-1


[Site "https://www.chess.com"]

[Event "Titled Tuesday Blitz August 17 2021"]
[White "Machidon, Cristi"]
[Black "Ivanov, Oleg"]
[WhiteFideId "13904590"]
[BlackFideId "4103114"]
[WhiteElo "2312"]
[BlackElo "2697"]
[Result "1/2-1/2"]
[Round "10"]
[TimeControl "180+1"]
[Date "2021.08.17"]
[WhiteClock "0:00:18"]
[BlackClock "0:00:16"]

1. d4 {[%clk 0:03:00]}  d5 {[%clk 0:02:59]} 2. Nf3 {[%clk 0:03:00]}  Nf6 {[%clk 0:02:59]} 3. Bg5 {[%clk 0:03:00]}  e6 {[%clk 0:02:58]} 4. Nbd2 {[%clk 0:03:00]}  Be7 {[%clk 0:02:57]} 5. c3 {[%clk 0:02:59]}  h6 {[%clk 0:02:56]} 6. Bxf6 {[%clk 0:02:59]}  Bxf6 {[%clk 0:02:55]} 7. e4 {[%clk 0:03:00]}  Be7 {[%clk 0:02:49]} 8. Bd3 {[%clk 0:02:59]}  O-O {[%clk 0:02:41]} 9. O-O {[%clk 0:02:58]}  c5 {[%clk 0:02:38]} 10. exd5 {[%clk 0:02:51]}  Qxd5 {[%clk 0:02:34]} 11. Qe2 {[%clk 0:02:47]}  Nc6 {[%clk 0:02:31]} 12. dxc5 {[%clk 0:02:33]}  Qxc5 {[%clk 0:02:13]} 13. Rad1 {[%clk 0:02:30]}  Bd7 {[%clk 0:01:57]} 14. Nb3 {[%clk 0:02:26]}  Qh5 {[%clk 0:01:49]} 15. Bh7+ {[%clk 0:02:23]}  Kxh7 {[%clk 0:01:49]} 16. Rxd7 {[%clk 0:02:23]}  Rab8 {[%clk 0:01:40]} 17. Qe4+ {[%clk 0:02:17]}  Qg6 {[%clk 0:01:34]} 18. Qxg6+ {[%clk 0:02:13]}  Kxg6 {[%clk 0:01:34]} 19. Rfd1 {[%clk 0:02:11]}  Rfd8 {[%clk 0:01:28]} 20. Kf1 {[%clk 0:02:08]}  f6 {[%clk 0:01:16]} 21. Ke2 {[%clk 0:01:59]}  Kf7 {[%clk 0:01:16]} 22. a4 {[%clk 0:01:44]}  e5 {[%clk 0:01:13]} 23. Rxd8 {[%clk 0:01:08]}  Rxd8 {[%clk 0:01:12]} 24. Rxd8 {[%clk 0:01:07]}  Nxd8 {[%clk 0:01:11]} 25. Nfd2 {[%clk 0:01:05]}  Ke6 {[%clk 0:01:10]} 26. Kd3 {[%clk 0:01:01]}  f5 {[%clk 0:01:06]} 27. f3 {[%clk 0:01:01]}  Kd5 {[%clk 0:01:03]} 28. g4 {[%clk 0:00:48]}  g6 {[%clk 0:00:58]} 29. gxf5 {[%clk 0:00:46]}  gxf5 {[%clk 0:00:58]} 30. Nf1 {[%clk 0:00:41]}  e4+ {[%clk 0:00:41]} 31. fxe4+ {[%clk 0:00:42]}  fxe4+ {[%clk 0:00:42]} 32. Ke2 {[%clk 0:00:42]}  Ne6 {[%clk 0:00:30]} 33. Ne3+ {[%clk 0:00:40]}  Ke5 {[%clk 0:00:30]} 34. Ng4+ {[%clk 0:00:21]}  Kf4 {[%clk 0:00:26]} 35. Nxh6 {[%clk 0:00:20]}  Kg5 {[%clk 0:00:18]} 36. Nf7+ {[%clk 0:00:18]}  Kf6 {[%clk 0:00:18]} 37. Nh6 {[%clk 0:00:18]}  Kg5 {[%clk 0:00:17]} 38. Nf7+ {[%clk 0:00:18]}  Kf6 {[%clk 0:00:16]} 39. Nh6 {[%clk 0:00:18]}  Kg5 {[%clk 0:00:16]} 1/2-1/2


[Site "https://www.chess.com"]